{"text_format":"1","workbook":"xlsx","n_sheets":6,"sheets":["お客さま控","電力控","改定履歴","平面図","引込線立面図","単線結線図"],"not_rendered":{"charts":0,"images":0,"macros":1,"external_links":2,"defined_names":82,"comments":1,"pivot_tables":0},"unopened":[],"bounds":{"document_bytes":16777216,"sheet_cells":100000,"rows_first":2000,"rows_last":500,"rows_between":2000,"halvings":0,"cell_chars":16384,"cell_head_chars":4096},"cells_cut":0,"cells_raw":0,"read":"whole","date_system":"1900"}

{"sheet":"お客さま控","index":0,"n_rows":81,"n_cols":52,"rows_kept":81,"cut":false,"hidden":false,"merged":[[68,15,69,26],[69,8,69,10],[69,11,69,13],[28,16,29,34],[55,14,56,20],[55,21,56,24],[55,8,56,13],[66,8,66,14],[66,15,67,26],[67,8,67,10],[68,0,69,7],[55,0,56,7],[57,23,58,24],[57,8,58,22],[62,0,63,7],[64,0,65,7],[62,11,63,31],[64,8,65,14],[64,15,65,16],[64,17,65,19],[64,20,65,21],[64,22,65,24],[64,25,65,26],[64,27,65,49],[68,27,69,49],[68,8,68,14],[9,27,10,32],[9,33,10,52],[66,0,67,7],[66,27,67,49],[67,11,67,13],[62,35,63,52],[64,50,65,52],[66,50,67,52],[57,0,58,7],[59,0,60,7],[59,8,60,24],[11,0,12,7],[9,0,10,5],[9,6,10,10],[9,11,10,26],[70,27,71,49],[70,50,71,52],[68,50,69,52],[78,38,80,39],[78,31,80,37],[76,50,77,52],[78,47,80,50],[78,51,80,52],[79,44,80,46],[72,27,73,49],[72,50,73,52],[70,0,73,7],[74,0,76,26],[77,0,80,26],[74,50,75,52],[76,27,77,49],[70,8,70,14],[73,11,73,13],[78,27,80,30],[78,40,80,43],[70,15,71,26],[71,8,71,10],[71,11,71,13],[72,8,72,14],[72,15,73,26],[73,8,73,10],[74,27,75,49],[0,0,2,52],[3,0,8,1],[3,2,5,5],[3,6,5,26],[3,27,8,32],[6,2,8,5],[6,6,8,26],[7,33,8,52],[3,35,4,52],[5,45,5,52],[6,39,6,44],[6,33,6,38]]}
["施工証明書　兼　お客さま電気設備図面"]
[]
[]
["お客さま",null,"住所\n(施工場所)",null,null,null,{"$f":"IF(電力控!G61<>\"\",電力控!G61,\"\")","v":""},null,null,null,null,null,null,null,null,null,null,null,null,null,null,null,null,null,null,null,null,"工事会社",null,null,null,null,null,"住所",null,{"$f":"IF(電力控!AJ61<>\"\",電力控!AJ61,\"\")","v":""}]
[]
[null,null,null,null,null,null,null,null,null,null,null,null,null,null,null,null,null,null,null,null,null,null,null,null,null,null,null,null,null,null,null,null,null,null,null,null,null,null,null,null,null,null,null,"TEL:",null,{"$f":"IF(電力控!AT63<>\"\",電力控!AT63,\"\")","v":""}]
[null,null,"氏名",null,null,null,{"$f":"IF(電力控!G64<>\"\",電力控!G64,\"\")","v":""},null,null,null,null,null,null,null,null,null,null,null,null,null,null,null,null,null,null,null,null,null,null,null,null,null,null,"社名（コード",null,null,null,null,null,{"$f":"IF(電力控!AN64<>\"\",電力控!AN64,\"\")","v":"-"},null,null,null,null,null,"）"]
[null,null,null,null,null,null,null,null,null,null,null,null,null,null,null,null,null,null,null,null,null,null,null,null,null,null,null,null,null,null,null,null,null,{"$f":"IF(電力控!AH65<>\"\",電力控!AH65,\"\")","v":""}]
[]
["電気工事の種類",null,null,null,null,null,{"$f":"IF(電力控!G67<>\"\",電力控!G67,\"\")","v":""},null,null,null,null,{"$f":"IF(電力控!L67<>\"\",電力控!L67,\"\")","v":""},null,null,null,null,null,null,null,null,null,null,null,null,null,null,null,"電気主任技術者",null,null,null,null,null,{"$f":"IF(電力控!AH67<>\"\",電力控!AH67,\"\")","v":""}]
[]
["単線結線図"]
[]
[]
[]
[]
[]
[]
[]
[]
[]
[]
[]
[]
[]
[]
[]
[]
[]
[]
[]
[]
[]
[]
[]
[]
[]
[]
[]
[]
[]
[]
[]
[]
[]
[]
[]
[]
[]
[]
[]
[]
[]
[]
[]
["幹線線種・太さ※",null,null,null,null,null,null,null,{"$f":"IF(電力控!I113<>\"\",電力控!I113,\"\")","v":""},null,null,null,null,null,{"$f":"IF(電力控!O113<>\"\",電力控!O113,\"\")","v":""},null,null,null,null,null,null,"mm2"]
[]
["幹線ブレーカ容量※",null,null,null,null,null,null,null,{"$f":"IF(電力控!I115<>\"\",電力控!I115,\"\")","v":""},null,null,null,null,null,null,null,null,null,null,null,null,null,null,"A"]
[]
["分岐回路数※",null,null,null,null,null,null,null,{"$f":"IF(電力控!I117<>\"\",電力控!I117,\"\")","v":""},null,null,null,null,null,null,null,null,null,null,null,null,null,null,null,null,null,"※は必要入力箇所"]
[]
[]
["注文者",null,null,null,null,null,null,null,"住所：",null,null,{"$f":"IF(電力控!L120<>\"\",電力控!L120,\"\")","v":""},null,null,null,null,null,null,null,null,null,null,null,null,null,null,null,null,null,null,null,null,"社名：",null,null,{"$f":"IF(電力控!AJ120<>\"\",電力控!AJ120,\"\")","v":""}]
[]
["施工年月日",null,null,null,null,null,null,null,{"$f":"IF(電力控!I122<>\"\",電力控!I122,\"\")","v":""},null,null,null,null,null,null,"年",null,{"$f":"IF(電力控!R122<>\"\",電力控!R122,\"\")","v":""},null,null,"月",null,{"$f":"IF(電力控!W122<>\"\",電力控!W122,\"\")","v":""},null,null,"日",null,"自主検査結果",null,null,null,null,null,null,null,null,null,null,null,null,null,null,null,null,null,null,null,null,null,null,"✓"]
[]
["主任電気工事士",null,null,null,null,null,null,null,{"$f":"IF(電力控!I124<>\"\",電力控!I124,\"\")","v":"第  種電気工事士"},{"$f":"IF(電力控!J124<>\"\",電力控!J124,\"\")","v":""},{"$f":"IF(電力控!K124<>\"\",電力控!K124,\"\")","v":""},{"$f":"IF(電力控!L124<>\"\",電力控!L124,\"\")","v":""},{"$f":"IF(電力控!M124<>\"\",電力控!M124,\"\")","v":""},{"$f":"IF(電力控!N124<>\"\",電力控!N124,\"\")","v":""},{"$f":"IF(電力控!O124<>\"\",電力控!O124,\"\")","v":""},{"$f":"IF(電力控!P124<>\"\",電力控!P124,\"\")","v":""},null,null,{"$f":"IF(電力控!S124<>\"\",電力控!S124,\"\")","v":""},null,null,{"$f":"IF(電力控!V124<>\"\",電力控!V124,\"\")","v":""},null,null,{"$f":"IF(電力控!Y124<>\"\",電力控!Y124,\"\")","v":""},null,null,"分電盤より電源側の設備施設状況"]
[null,null,null,null,null,null,null,null,{"$f":"電力控!I125","v":"北海道第号"},null,null,{"$f":"IF(電力控!L125<>\"\",電力控!L125,\"\")","v":""},{"$f":"IF(電力控!M125<>\"\",電力控!M125,\"\")","v":""},{"$f":"IF(電力控!N125<>\"\",電力控!N125,\"\")","v":""},"号"]
["施工責任者",null,null,null,null,null,null,null,{"$f":"IF(電力控!I126<>\"\",電力控!I126,\"\")","v":"第  種電気工事士"},{"$f":"IF(電力控!J126<>\"\",電力控!J126,\"\")","v":""},{"$f":"IF(電力控!K126<>\"\",電力控!K126,\"\")","v":""},{"$f":"IF(電力控!L126<>\"\",電力控!L126,\"\")","v":""},{"$f":"IF(電力控!M126<>\"\",電力控!M126,\"\")","v":""},{"$f":"IF(電力控!N126<>\"\",電力控!N126,\"\")","v":""},{"$f":"IF(電力控!O126<>\"\",電力控!O126,\"\")","v":""},{"$f":"IF(電力控!P126<>\"\",電力控!P126,\"\")","v":""},{"$f":"IF(電力控!Q126<>\"\",電力控!Q126,\"\")","v":""},{"$f":"IF(電力控!R126<>\"\",電力控!R126,\"\")","v":""},{"$f":"IF(電力控!S126<>\"\",電力控!S126,\"\")","v":""},{"$f":"IF(電力控!T126<>\"\",電力控!T126,\"\")","v":""},{"$f":"IF(電力控!U126<>\"\",電力控!U126,\"\")","v":""},{"$f":"IF(電力控!V126<>\"\",電力控!V126,\"\")","v":""},{"$f":"IF(電力控!W126<>\"\",電力控!W126,\"\")","v":""},{"$f":"IF(電力控!X126<>\"\",電力控!X126,\"\")","v":""},{"$f":"IF(電力控!Y126<>\"\",電力控!Y126,\"\")","v":""},{"$f":"IF(電力控!Z126<>\"\",電力控!Z126,\"\")","v":""},{"$f":"IF(電力控!AA126<>\"\",電力控!AA126,\"\")","v":""},"分電盤（ブレーカーの選定など）"]
[null,null,null,null,null,null,null,null,{"$f":"電力控!I127","v":"北海道第　　　号"},null,null,{"$f":"IF(電力控!L127<>\"\",電力控!L127,\"\")","v":""},{"$f":"IF(電力控!M127<>\"\",電力控!M127,\"\")","v":""},{"$f":"IF(電力控!N127<>\"\",電力控!N127,\"\")","v":""},"号",{"$f":"IF(電力控!P127<>\"\",電力控!P127,\"\")","v":""},{"$f":"IF(電力控!Q127<>\"\",電力控!Q127,\"\")","v":""},{"$f":"IF(電力控!R127<>\"\",電力控!R127,\"\")","v":""},{"$f":"IF(電力控!S127<>\"\",電力控!S127,\"\")","v":""},{"$f":"IF(電力控!T127<>\"\",電力控!T127,\"\")","v":""},{"$f":"IF(電力控!U127<>\"\",電力控!U127,\"\")","v":""},{"$f":"IF(電力控!V127<>\"\",電力控!V127,\"\")","v":""},{"$f":"IF(電力控!W127<>\"\",電力控!W127,\"\")","v":""},{"$f":"IF(電力控!X127<>\"\",電力控!X127,\"\")","v":""},{"$f":"IF(電力控!Y127<>\"\",電力控!Y127,\"\")","v":""},{"$f":"IF(電力控!Z127<>\"\",電力控!Z127,\"\")","v":""},{"$f":"IF(電力控!AA127<>\"\",電力控!AA127,\"\")","v":""}]
["作業者",null,null,null,null,null,null,null,{"$f":"IF(電力控!I128<>\"\",電力控!I128,\"\")","v":"第  種電気工事士"},{"$f":"IF(電力控!J128<>\"\",電力控!J128,\"\")","v":""},{"$f":"IF(電力控!K128<>\"\",電力控!K128,\"\")","v":""},{"$f":"IF(電力控!L128<>\"\",電力控!L128,\"\")","v":""},{"$f":"IF(電力控!M128<>\"\",電力控!M128,\"\")","v":""},{"$f":"IF(電力控!N128<>\"\",電力控!N128,\"\")","v":""},{"$f":"IF(電力控!O128<>\"\",電力控!O128,\"\")","v":""},{"$f":"IF(電力控!P128<>\"\",電力控!P128,\"\")","v":""},{"$f":"IF(電力控!Q128<>\"\",電力控!Q128,\"\")","v":""},{"$f":"IF(電力控!R128<>\"\",電力控!R128,\"\")","v":""},{"$f":"IF(電力控!S128<>\"\",電力控!S128,\"\")","v":""},{"$f":"IF(電力控!T128<>\"\",電力控!T128,\"\")","v":""},{"$f":"IF(電力控!U128<>\"\",電力控!U128,\"\")","v":""},{"$f":"IF(電力控!V128<>\"\",電力控!V128,\"\")","v":""},{"$f":"IF(電力控!W128<>\"\",電力控!W128,\"\")","v":""},{"$f":"IF(電力控!X128<>\"\",電力控!X128,\"\")","v":""},{"$f":"IF(電力控!Y128<>\"\",電力控!Y128,\"\")","v":""},{"$f":"IF(電力控!Z128<>\"\",電力控!Z128,\"\")","v":""},{"$f":"IF(電力控!AA128<>\"\",電力控!AA128,\"\")","v":""},"開閉器端子の増し締め"]
[null,null,null,null,null,null,null,null,{"$f":"電力控!I129","v":"北海道第　　　号"},null,null,{"$f":"IF(電力控!L129<>\"\",電力控!L129,\"\")","v":""},{"$f":"IF(電力控!M129<>\"\",電力控!M129,\"\")","v":""},{"$f":"IF(電力控!N129<>\"\",電力控!N129,\"\")","v":""},"号",{"$f":"IF(電力控!P129<>\"\",電力控!P129,\"\")","v":""},{"$f":"IF(電力控!Q129<>\"\",電力控!Q129,\"\")","v":""},{"$f":"IF(電力控!R129<>\"\",電力控!R129,\"\")","v":""},{"$f":"IF(電力控!S129<>\"\",電力控!S129,\"\")","v":""},{"$f":"IF(電力控!T129<>\"\",電力控!T129,\"\")","v":""},{"$f":"IF(電力控!U129<>\"\",電力控!U129,\"\")","v":""},{"$f":"IF(電力控!V129<>\"\",電力控!V129,\"\")","v":""},{"$f":"IF(電力控!W129<>\"\",電力控!W129,\"\")","v":""},{"$f":"IF(電力控!X129<>\"\",電力控!X129,\"\")","v":""},{"$f":"IF(電力控!Y129<>\"\",電力控!Y129,\"\")","v":""},{"$f":"IF(電力控!Z129<>\"\",電力控!Z129,\"\")","v":""},{"$f":"IF(電力控!AA129<>\"\",電力控!AA129,\"\")","v":""}]
[null,null,null,null,null,null,null,null,{"$f":"IF(電力控!I130<>\"\",電力控!I130,\"\")","v":"第  種電気工事士"},{"$f":"IF(電力控!J130<>\"\",電力控!J130,\"\")","v":""},{"$f":"IF(電力控!K130<>\"\",電力控!K130,\"\")","v":""},{"$f":"IF(電力控!L130<>\"\",電力控!L130,\"\")","v":""},{"$f":"IF(電力控!M130<>\"\",電力控!M130,\"\")","v":""},{"$f":"IF(電力控!N130<>\"\",電力控!N130,\"\")","v":""},{"$f":"IF(電力控!O130<>\"\",電力控!O130,\"\")","v":""},{"$f":"IF(電力控!P130<>\"\",電力控!P130,\"\")","v":""},{"$f":"IF(電力控!Q130<>\"\",電力控!Q130,\"\")","v":""},{"$f":"IF(電力控!R130<>\"\",電力控!R130,\"\")","v":""},{"$f":"IF(電力控!S130<>\"\",電力控!S130,\"\")","v":""},{"$f":"IF(電力控!T130<>\"\",電力控!T130,\"\")","v":""},{"$f":"IF(電力控!U130<>\"\",電力控!U130,\"\")","v":""},{"$f":"IF(電力控!V130<>\"\",電力控!V130,\"\")","v":""},{"$f":"IF(電力控!W130<>\"\",電力控!W130,\"\")","v":""},{"$f":"IF(電力控!X130<>\"\",電力控!X130,\"\")","v":""},{"$f":"IF(電力控!Y130<>\"\",電力控!Y130,\"\")","v":""},{"$f":"IF(電力控!Z130<>\"\",電力控!Z130,\"\")","v":""},{"$f":"IF(電力控!AA130<>\"\",電力控!AA130,\"\")","v":""},"屋内部分の配線接続・保護など"]
[null,null,null,null,null,null,null,null,{"$f":"電力控!I131","v":"北海道第　　　号"},null,null,{"$f":"IF(電力控!L131<>\"\",電力控!L131,\"\")","v":""},{"$f":"IF(電力控!M131<>\"\",電力控!M131,\"\")","v":""},{"$f":"IF(電力控!N131<>\"\",電力控!N131,\"\")","v":""},"号",{"$f":"IF(電力控!P131<>\"\",電力控!P131,\"\")","v":""},{"$f":"IF(電力控!Q131<>\"\",電力控!Q131,\"\")","v":""},{"$f":"IF(電力控!R131<>\"\",電力控!R131,\"\")","v":""},{"$f":"IF(電力控!S131<>\"\",電力控!S131,\"\")","v":""},{"$f":"IF(電力控!T131<>\"\",電力控!T131,\"\")","v":""},{"$f":"IF(電力控!U131<>\"\",電力控!U131,\"\")","v":""},{"$f":"IF(電力控!V131<>\"\",電力控!V131,\"\")","v":""},{"$f":"IF(電力控!W131<>\"\",電力控!W131,\"\")","v":""},{"$f":"IF(電力控!X131<>\"\",電力控!X131,\"\")","v":""},{"$f":"IF(電力控!Y131<>\"\",電力控!Y131,\"\")","v":""},{"$f":"IF(電力控!Z131<>\"\",電力控!Z131,\"\")","v":""},{"$f":"IF(電力控!AA131<>\"\",電力控!AA131,\"\")","v":""}]
["・お引渡ししました電気設備について、関係諸法令に適合した施工であることを証明いたします。",null,null,null,null,null,null,null,null,null,null,null,null,null,null,null,null,null,null,null,null,null,null,null,null,null,null,"配線器具、材料選定、機器の施設状況"]
[]
[null,null,null,null,null,null,null,null,null,null,null,null,null,null,null,null,null,null,null,null,null,null,null,null,null,null,null,"接地工事状況"]
["・この証明書は、電気工事業の適正化に関する法律による帳簿を兼ねます。"]
[null,null,null,null,null,null,null,null,null,null,null,null,null,null,null,null,null,null,null,null,null,null,null,null,null,null,null,"絶縁\n抵抗値",null,null,null,{"$f":"IF(電力控!AF136<>\"\",電力控!AF136,\"\")","v":""},{"$f":"IF(電力控!AG136<>\"\",電力控!AG136,\"\")","v":""},{"$f":"IF(電力控!AH136<>\"\",電力控!AH136,\"\")","v":""},{"$f":"IF(電力控!AI136<>\"\",電力控!AI136,\"\")","v":""},{"$f":"IF(電力控!AJ136<>\"\",電力控!AJ136,\"\")","v":""},{"$f":"IF(電力控!AK136<>\"\",電力控!AK136,\"\")","v":""},{"$f":"IF(電力控!AL136<>\"\",電力控!AL136,\"\")","v":""},"MΩ",null,"接地\n抵抗値",null,null,null,"D種",null,null,{"$f":"IF(電力控!AV136<>\"\",電力控!AV136,\"\")","v":""},{"$f":"IF(電力控!AW136<>\"\",電力控!AW136,\"\")","v":""},{"$f":"IF(電力控!AX136<>\"\",電力控!AX136,\"\")","v":""},{"$f":"IF(電力控!AY136<>\"\",電力控!AY136,\"\")","v":""},"Ω"]
[null,null,null,null,null,null,null,null,null,null,null,null,null,null,null,null,null,null,null,null,null,null,null,null,null,null,null,null,null,null,null,{"$f":"IF(電力控!AF137<>\"\",電力控!AF137,\"\")","v":""},{"$f":"IF(電力控!AG137<>\"\",電力控!AG137,\"\")","v":""},{"$f":"IF(電力控!AH137<>\"\",電力控!AH137,\"\")","v":""},{"$f":"IF(電力控!AI137<>\"\",電力控!AI137,\"\")","v":""},{"$f":"IF(電力控!AJ137<>\"\",電力控!AJ137,\"\")","v":""},{"$f":"IF(電力控!AK137<>\"\",電力控!AK137,\"\")","v":""},{"$f":"IF(電力控!AL137<>\"\",電力控!AL137,\"\")","v":""},null,null,null,null,null,null,"その他\n(　　種)",null,null,{"$f":"IF(電力控!AV137<>\"\",電力控!AV137,\"\")","v":""},{"$f":"IF(電力控!AW137<>\"\",電力控!AW137,\"\")","v":""},{"$f":"IF(電力控!AX137<>\"\",電力控!AX137,\"\")","v":""},{"$f":"IF(電力控!AY137<>\"\",電力控!AY137,\"\")","v":""}]
[null,null,null,null,null,null,null,null,null,null,null,null,null,null,null,null,null,null,null,null,null,null,null,null,null,null,null,null,null,null,null,{"$f":"IF(電力控!AF138<>\"\",電力控!AF138,\"\")","v":""},{"$f":"IF(電力控!AG138<>\"\",電力控!AG138,\"\")","v":""},{"$f":"IF(電力控!AH138<>\"\",電力控!AH138,\"\")","v":""},{"$f":"IF(電力控!AI138<>\"\",電力控!AI138,\"\")","v":""},{"$f":"IF(電力控!AJ138<>\"\",電力控!AJ138,\"\")","v":""},{"$f":"IF(電力控!AK138<>\"\",電力控!AK138,\"\")","v":""},{"$f":"IF(電力控!AL138<>\"\",電力控!AL138,\"\")","v":""},null,null,null,null,null,null,null,null,null,{"$f":"IF(電力控!AV138<>\"\",電力控!AV138,\"\")","v":""},{"$f":"IF(電力控!AW138<>\"\",電力控!AW138,\"\")","v":""},{"$f":"IF(電力控!AX138<>\"\",電力控!AX138,\"\")","v":""},{"$f":"IF(電力控!AY138<>\"\",電力控!AY138,\"\")","v":""}]

{"sheet":"電力控","index":1,"n_rows":218,"n_cols":100,"rows_kept":218,"cut":false,"hidden":false,"merged":[[89,57,91,86],[14,94,17,117],[200,79,201,84],[205,66,206,70],[205,59,206,63],[205,79,206,83],[205,72,206,76],[212,65,213,69],[212,59,213,63],[141,57,142,71],[42,94,43,97],[44,94,45,97],[46,94,47,97],[48,94,49,97],[30,94,31,97],[66,57,67,71],[54,102,55,105],[56,102,56,105],[18,98,19,101],[20,98,21,101],[22,98,23,101],[24,98,25,101],[26,98,27,101],[28,98,29,101],[135,51,137,52],[180,57,181,71],[186,66,187,70],[186,59,187,63],[193,66,194,70],[193,59,194,63],[200,66,201,70],[200,59,201,63],[200,72,201,77],[217,0,218,8],[215,0,216,8],[209,0,210,8],[207,0,208,8],[207,17,208,18],[207,9,208,16],[211,17,212,18],[211,9,212,16],[215,17,216,18],[217,43,218,44],[216,41,216,42],[216,43,216,44],[213,9,214,18],[123,50,124,52],[131,27,132,49],[131,50,132,52],[133,27,134,49],[133,50,134,52],[217,51,218,52],[217,49,218,50],[217,47,218,48],[217,45,218,46],[217,9,218,18],[135,27,137,30],[135,47,137,50],[217,41,218,42],[216,34,218,40],[216,45,216,46],[135,38,137,39],[135,31,137,37],[135,40,137,43],[216,47,216,48],[216,51,216,52],[216,49,216,50],[213,0,214,8],[131,0,132,13],[131,17,132,26],[135,13,137,16],[135,25,137,26],[136,17,137,19],[136,44,137,46],[215,9,216,16],[211,0,212,8],[133,0,137,1],[133,2,137,6],[133,7,137,8],[133,9,137,12],[133,13,134,16],[133,17,134,26],[139,0,140,8],[178,0,179,8],[209,9,210,18],[135,20,137,24],[155,16,156,34],[192,16,193,34],[3,1,3,2],[3,22,3,23],[3,25,3,28],[6,1,6,2],[6,18,6,39],[8,1,8,2],[8,18,8,39],[125,8,125,14],[125,15,126,26],[123,0,124,7],[123,8,123,14],[114,23,115,24],[114,8,115,22],[119,11,120,31],[112,8,113,13],[112,14,113,20],[112,21,113,24],[123,27,124,49],[121,27,122,49],[119,35,120,52],[121,25,122,26],[121,20,122,21],[121,15,122,16],[52,46,52,48],[44,1,44,2],[44,42,44,43],[34,1,34,2],[34,18,34,48],[36,1,36,2],[36,18,36,38],[38,1,38,2],[38,18,38,24],[38,33,38,42],[12,32,12,33],[16,32,16,33],[28,1,28,2],[28,18,28,30],[30,1,30,2],[30,18,30,48],[32,1,32,2],[32,18,32,38],[42,1,42,2],[42,18,42,21],[18,19,18,31],[12,34,12,42],[16,34,16,42],[20,34,20,42],[24,34,24,42],[10,1,10,2],[10,18,10,24],[12,1,12,2],[12,16,12,17],[12,18,12,19],[26,19,26,31],[20,1,20,2],[20,16,20,17],[20,18,20,19],[22,19,22,31],[24,1,24,2],[24,16,24,17],[24,18,24,19],[14,19,14,31],[16,1,16,2],[16,16,16,17],[16,18,16,19],[48,1,48,2],[48,42,48,43],[50,1,50,2],[50,18,50,21],[46,1,46,2],[46,18,46,21],[46,42,46,43],[52,1,52,2],[54,1,54,2],[54,18,54,26],[52,42,52,45],[66,11,67,26],[112,0,113,7],[114,0,115,7],[116,0,117,7],[116,8,117,24],[119,0,120,7],[125,0,126,7],[121,22,122,24],[121,17,122,19],[121,0,122,7],[66,0,67,5],[66,6,67,10],[85,16,86,34],[121,8,122,14],[123,15,124,26],[68,0,69,7],[66,27,67,32],[66,33,67,52],[127,0,130,7],[125,27,126,49],[125,50,126,52],[127,27,128,49],[116,41,117,52],[127,50,128,52],[129,27,130,49],[129,50,130,52],[121,50,122,52],[129,8,129,14],[129,15,130,26],[127,8,127,14],[127,15,128,26],[124,8,124,14],[126,8,126,14],[128,8,128,14],[130,8,130,14],[63,39,63,45],[62,45,62,52],[60,35,61,52],[64,33,65,52],[57,0,59,52],[60,0,65,1],[60,2,62,5],[60,6,62,26],[60,27,65,32],[63,2,65,5],[63,6,65,26],[54,98,55,101],[36,102,37,105],[38,102,39,105],[40,102,41,105],[42,102,43,105],[44,102,45,105],[46,102,47,105],[48,102,49,105],[50,102,51,105],[52,102,53,105],[36,98,37,101],[38,98,39,101],[40,98,41,101],[42,98,43,101],[44,98,45,101],[46,98,47,101],[22,102,23,105],[24,102,25,105],[26,102,27,105],[28,102,29,105],[30,102,31,105],[32,102,33,105],[34,102,35,105],[48,98,49,101],[50,98,51,101],[30,98,31,101],[32,98,33,101],[34,98,35,101],[18,106,19,109],[20,106,21,109],[22,106,23,109],[24,106,25,109],[26,106,27,109],[28,106,29,109],[30,106,31,109],[32,106,33,109],[34,106,35,109],[18,110,19,113],[20,110,21,113],[22,110,23,113],[24,110,25,113],[26,110,27,113],[28,110,29,113],[30,110,31,113],[32,110,33,113],[34,110,35,113],[20,114,21,117],[22,114,23,117],[24,114,25,117],[26,114,27,117],[28,114,29,117],[30,114,31,117],[32,114,33,117],[34,114,35,117],[54,106,55,109],[42,106,43,109],[44,106,45,109],[46,106,47,109],[48,106,49,109],[50,106,51,109],[52,106,53,109],[36,110,37,113],[38,110,39,113],[40,110,41,113],[42,110,43,113],[44,110,45,113],[46,110,47,113],[48,110,49,113],[50,110,51,113],[52,110,53,113],[54,114,55,117],[56,114,56,117],[34,63,35,91],[36,63,37,91],[38,63,39,91],[40,63,41,91],[42,63,43,91],[36,114,37,117],[38,114,39,117],[40,114,41,117],[42,114,43,117],[44,114,45,117],[46,114,47,117],[48,114,49,117],[50,114,51,117],[52,114,53,117],[40,94,41,97],[56,106,56,109],[54,110,55,113],[56,110,56,113],[36,106,37,109],[38,106,39,109],[40,106,41,109],[52,98,53,101],[18,114,19,117],[70,85,71,95],[68,85,69,95],[50,94,51,97],[52,94,53,97],[54,94,55,97],[56,94,56,97],[12,65,12,87],[14,65,14,67],[16,71,16,73],[18,94,19,97],[20,94,21,97],[22,94,23,97],[24,94,25,97],[26,94,27,97],[28,94,29,97],[70,96,71,98],[68,96,69,98],[66,96,67,98],[56,98,56,101],[32,94,33,97],[34,94,35,97],[36,94,37,97],[38,94,39,97],[68,99,69,105],[70,99,71,105],[72,99,73,105],[74,99,75,105],[64,99,65,105],[62,96,63,105],[20,32,20,33],[24,32,24,33],[12,28,12,31],[16,28,16,31],[20,28,20,31],[24,28,24,31],[63,33,63,38],[74,85,75,95],[72,85,73,95],[74,96,75,98],[72,96,73,98],[64,96,65,98],[62,85,65,95],[66,85,67,95],[60,85,61,92],[66,99,67,105],[18,102,19,105],[20,102,21,105]]}
["電気設備図面_低圧"]
[null,"【入力項目】",null,null,null,null,null,null,null,null,null,null,null,null,null,null,null,null,null,null,null,null,null,null,"※入力チェックエラーでも保存可能"]
[]
[null,"◆",null,"引込線･計測器工事会社登録番号[必須]",null,null,null,null,null,null,null,null,null,null,null,null,null,null,null,null,null,null,null,null,"-",null,null,null,null,null,null,null,null,null,null,null,null,null,null,null,null,null,null,null,null,null,null,null,null,null,null,null,null,null,null,null,null,null,"◆集合住宅入力用"]
[null,null,"※非組合員の方は「ZZ-999」と入力してください",null,null,null,null,null,null,null,null,null,null,null,null,null,null,null,null,null,null,null,null,null,null,null,null,null,null,null,null,null,null,null,null,null,null,null,null,null,null,null,null,null,null,null,null,null,null,null,null,null,null,null,null,null,null,null,"※集合住宅の新設等でお客さま名を部屋番号とする場合に一括で入力できます"]
[]
[null,"◆",null,"工事会社名[必須]",null,null,null,null,null,null,null,null,null,null,null,null,null,null,null,null,null,null,null,null,null,null,null,null,null,null,null,null,null,null,null,null,null,null,null,null,null,null,null,null,null,null,null,null,null,null,null,null,null,null,null,null,null,null,"　単線図・平面図が共通（または別紙参照）の場合に便利です"]
[]
[null,"◆",null,"工事会社住所[必須]",null,null,null,null,null,null,null,null,null,null,null,null,null,null,null,null,null,null,null,null,null,null,null,null,null,null,null,null,null,null,null,null,null,null,null,null,null,null,null,null,null,null,null,null,null,null,null,null,null,null,null,null,null,null,"　詳しくは「記入方法について」をご覧下さい"]
[]
[null,"◆",null,"工事会社電話番号[必須]"]
[]
[null,"◆",null,"主任工事士[必須]",null,null,null,null,null,null,null,null,null,null,null,null,"第",null,null,null,"種電気工事士",null,null,null,null,null,null,null,"北海道",null,null,null,"第",null,null,null,null,null,null,null,null,null,null,"号",null,null,null,null,null,null,null,null,null,null,null,null,null,null,"建物名"]
[]
[null,null,null,null,null,null,null,null,null,null,null,null,null,null,null,null,"氏名",null,null,null,null,null,null,null,null,null,null,null,null,null,null,null,null,null,null,null,null,null,null,null,null,null,null,null,null,null,null,null,null,null,null,null,null,null,null,null,null,null,"階数",null,null,null,null,null,null,null,null,null,null,"階",null,null,null,null,null,null,null,null,null,null,null,null,null,null,null,null,null,null,null,null,null,null,null,null,"部屋番号直接入力欄\n（120室まで、入力方向は任意です）"]
[]
[null,"◆",null,"施工責任者[必須]",null,null,null,null,null,null,null,null,null,null,null,null,"第",null,null,null,"種電気工事士",null,null,null,null,null,null,null,"北海道",null,null,null,"第",null,null,null,null,null,null,null,null,null,null,"号",null,null,null,null,null,null,null,null,null,null,null,null,null,null,"1階当たりの部屋数",null,null,null,null,null,null,null,null,null,null,null,null,null,null,null,null,"部屋"]
[]
[null,null,null,null,null,null,null,null,null,null,null,null,null,null,null,null,"氏名"]
[]
[null,"◆",null,"作業者",null,null,null,null,null,null,null,null,null,null,null,null,"第",null,null,null,"種電気工事士",null,null,null,null,null,null,null,"北海道",null,null,null,"第",null,null,null,null,null,null,null,null,null,null,"号"]
[]
[null,null,null,null,null,null,null,null,null,null,null,null,null,null,null,null,"氏名",null,null,null,null,null,null,null,null,null,null,null,null,null,null,null,null,null,null,null,null,null,null,null,null,null,null,null,null,null,null,null,null,null,null,null,null,null,null,null,null,null,"表示方法"]
[]
[null,"◆",null,"作業者",null,null,null,null,null,null,null,null,null,null,null,null,"第",null,null,null,"種電気工事士",null,null,null,null,null,null,null,"北海道",null,null,null,"第",null,null,null,null,null,null,null,null,null,null,"号"]
[]
[null,null,null,null,null,null,null,null,null,null,null,null,null,null,null,null,"氏名"]
[]
[null,"◆",null,"電気主任技術者氏名",null,null,null,null,null,null,null,null,null,null,null,null,null,null,null,null,null,null,null,null,null,null,null,null,null,null,null,null,null,null,null,null,null,null,null,null,null,null,null,null,null,null,null,null,null,null,null,null,null,null,null,null,null,null,"下１桁の扱い"]
[]
[null,"◆",null,"お客さま住所（施工場所）[必須]",null,null,null,null,null,null,null,null,null,null,null,null,null,null,null,null,null,null,null,null,null,null,null,null,null,null,null,null,null,null,null,null,null,null,null,null,null,null,null,null,null,null,null,null,null,null,null,null,null,null,null,null,null,null,"（数字の場合）"]
[]
[null,"◆",null,"お客さま氏名[必須]"]
[]
[null,"◆",null,"注文者住所[必須]",null,null,null,null,null,null,null,null,null,null,null,null,null,null,null,null,null,null,null,null,null,null,null,null,null,null,null,null,null,null,null,null,null,null,null,null,null,null,null,null,null,null,null,null,null,null,null,null,null,null,null,null,null,null,null,null,null,null,null,{"$f":"BN13& \"　\" &CHOOSE(BK19,BN15 & \"1号室\",BN15 & \"01号室\",BN15 & \"-A号室\",\"A号室\",CQ19 & \"号室\")","v":{"$error":"#VALUE!"}}]
[]
[null,"◆",null,"注文者氏名（名称）[必須]",null,null,null,null,null,null,null,null,null,null,null,null,null,null,null,null,null,null,null,null,null,null,null,null,null,null,null,null,null,null,null,null,null,null,null,null,null,null,null,null,null,null,null,null,null,null,null,null,null,null,null,null,null,null,null,null,null,null,null,{"$f":"BN13& \"　\" &CHOOSE(BK19,BN15 & \"2号室\",BN15 & \"02号室\",BN15 & \"-B号室\",\"B号室\",CQ21 & \"号室\")","v":{"$error":"#VALUE!"}}]
[]
[null,"◆",null,"電気工事の種類[必須]",null,null,null,null,null,null,null,null,null,null,null,null,null,null,null,null,null,null,null,null,null,null,null,null,null,null,null,null,"その他の場合：",null,null,null,null,null,null,null,null,null,null,{"$f":"IF(ISERR(FIND(\"その他\",S39)),\"\",\"　\"&AH39)","v":""},null,null,null,null,null,null,null,null,null,null,null,null,null,null,"表示例",null,null,null,null,{"$f":"BN13& \"　\" &CHOOSE(BK19,BN15 & \"3号室\",BN15 & \"03号室\",BN15 & \"-C号室\",\"C号室\",CQ23 & \"号室\")","v":{"$error":"#VALUE!"}}]
[]
[null,null,null,null,null,null,null,null,null,null,null,null,null,null,null,null,null,null,null,null,null,null,null,null,null,null,null,null,null,null,null,null,null,null,null,null,null,null,null,null,null,null,null,null,null,null,null,null,null,null,null,null,null,null,null,null,null,null,null,null,null,null,null,{"$f":"BN13& \"　\" &CHOOSE(BK19,BN15 & (6-ROUND(ABS(BX29-1.5),0)) & \"号室\",BN15 & \"0\"& (6-ROUND(ABS(BX29-1.5),0)) &\"号室\",BN15 & \"-D号室\",\"D号室\",CQ25 & \"号室\")","v":{"$error":"#VALUE!"}}]
[]
[null,"◆",null,"引込受点高さ[必須]",null,null,null,null,null,null,null,null,null,null,null,null,null,null,null,null,null,null,"m",null,null,null,null,null,null,null,null,null,null,null,"◆ 別紙扱いの場合○↓",null,null,null,null,null,null,null,null,null,null,null,null,null,null,null,null,null,null,null,null,null,null,null,null,null,null,null,null,{"$f":"BN13& \"　\" &CHOOSE(BK19,BN15 & (7-ROUND(ABS(BX29-1.5),0))& \"号室\",BN15 & \"0\" & (7-ROUND(ABS(BX29-1.5),0))& \"号室\",BN15 & \"-E号室\",\"E号室\",CQ27 & \"号室\")","v":{"$error":"#VALUE!"}}]
[]
[null,"◆",null,"道路横断の有無[必須]",null,null,null,null,null,null,null,null,null,null,null,null,null,null,null,null,null,null,null,null,null,null,null,null,null,null,null,null,null,null,"単線結線図",null,null,null,null,null,null,null,null,null,null,null,null,null,null,null,null,null,null,null,null,null,null,null,"※印刷時、「お客さま氏名」欄に自動で印字されます"]
[]
[null,"◆",null,"最寄電柱からの距離[必須]",null,null,null,null,null,null,null,null,null,null,null,null,null,null,null,null,null,null,"m",null,null,null,null,null,null,null,null,null,null,null,"位置図"]
[]
[null,"◆",null,"計器工事要否[必須]",null,null,null,null,null,null,null,null,null,null,null,null,null,null,null,null,null,null,null,null,null,null,null,null,null,null,null,null,null,null,"平面図"]
[]
[null,"◆",null,"計器取付高さ[必須]※",null,null,null,null,null,null,null,null,null,null,null,null,null,null,null,null,null,null,"m",null,null,null,null,null,null,null,null,null,null,null,null,null,null,null,null,null,null,null,null,null,null,null,null,null,null,null,null,null,null,"※定額・臨時未計器契約の場合は該当ボタンを選択"]
[]
[null,"◆",null,"電力計器箱の支給[必須]",null,null,null,null,null,null,null,null,null,null,null,null,null,null,null,null,null,null,null,null,null,null,null,null,null,null,null,null,null,null,"◆ 契約容量"]
[]
[null,"◆",null,"引込柱Ｎｏ[必須]",null,null,null,null,null,null,null,null,null,null,null,null,null,null,null,null,null,null,null,null,null,null,null,"※12桁連続入力"]
[]
[null,null,null,null,null,null,null,null,null,null,null,null,null,null,null,null,null,null,null,null,null,null,null,null,null,null,null,null,null,null,null,null,null,null,null,null,null,null,null,null,null,null,null,null,null,null,null,null,null,null,null,null,null,null,null,null,null,null,"※入力情報を流用して引込設計書を作成します"]
["しゅん工調査票　兼　お客さま電気設備図面"]
[]
[]
["お客さま",null,"住所\n(施工場所)",null,null,null,{"$f":"IF(S31<>\"\",S31,\"\")","v":""},null,null,null,null,null,null,null,null,null,null,null,null,null,null,null,null,null,null,null,null,"工事会社",null,null,null,null,null,"住所",null,{"$f":"IF(S9<>\"\",S9,\"\")","v":""},null,null,null,null,null,null,null,null,null,null,null,null,null,null,null,null,null,null,null,null,null,null,null,null,null,null,null,null,null,null,null,null,null,null,null,null,null,null,null,null,null,null,null,null,null,null,null,null,null,"◆工事士名簿"]
[]
[null,null,null,null,null,null,null,null,null,null,null,null,null,null,null,null,null,null,null,null,null,null,null,null,null,null,null,null,null,null,null,null,null,null,null,null,null,null,null,null,null,null,null,"TEL:",null,{"$f":"IF(S11<>\"\",S11,\"\")","v":""},null,null,null,null,null,null,null,null,null,null,null,null,null,null,null,null,null,null,null,null,null,null,null,null,null,null,null,null,null,null,null,null,null,null,null,null,null,null,null,"氏名",null,null,null,null,null,null,null,null,null,null,"工事士免状"]
[null,null,"氏名",null,null,null,{"$f":"IF(S33<>\"\",S33,\"\")","v":""},null,null,null,null,null,null,null,null,null,null,null,null,null,null,null,null,null,null,null,null,null,null,null,null,null,null,"社名（コード",null,null,null,null,null,{"$f":"W4&Y4&Z4","v":"-"},null,null,null,null,null,null,"）"]
[null,null,null,null,null,null,null,null,null,null,null,null,null,null,null,null,null,null,null,null,null,null,null,null,null,null,null,null,null,null,null,null,null,{"$f":"IF(S7<>\"\",S7,\"\")","v":""},null,null,null,null,null,null,null,null,null,null,null,null,null,null,null,null,null,null,null,null,null,null,null,null,null,null,null,null,null,null,null,null,null,null,null,null,null,null,null,null,null,null,null,null,null,null,null,null,null,null,null,null,null,null,null,null,null,null,null,null,null,null,"種別",null,null,"番号"]
[]
["電気工事の種類",null,null,null,null,null,{"$f":"IF(S39<>\"\",LEFT(S39,2),\"\")","v":""},null,null,null,null,{"$f":"IF(S39<>\"\",MID(S39,4,3)&AR39,\"\")","v":""},null,null,null,null,null,null,null,null,null,null,null,null,null,null,null,"電気主任技術者",null,null,null,null,null,{"$f":"IF(S29<>\"\",S29,\"\")","v":""},null,null,null,null,null,null,null,null,null,null,null,null,null,null,null,null,null,null,null,null,null,null,null,"↓「単線結線図」編集↓"]
[]
["単線結線図"]
[]
[]
[]
[]
[]
[]
[]
[]
[]
[]
[]
[]
[]
[]
[]
[]
[null,null,null,null,null,null,null,null,null,null,null,null,null,null,null,null,{"$f":"IF(電力控!AQ45=\"○\",\"（別紙参照）\",\"\")","v":""}]
[]
[]
[]
[null,null,null,null,null,null,null,null,null,null,null,null,null,null,null,null,null,null,null,null,null,null,null,null,null,null,null,null,null,null,null,null,null,null,null,null,null,null,null,null,null,null,null,null,null,null,null,null,null,null,null,null,null,null,null,null,null,"※基本的な単線結線図なので、工事内容に応じて\n追加や削除をして使用してください。"]
[]
[]
[]
[]
[]
[]
[]
[null,null,null,null,null,null,null,null,null,null,null,null,null,null,null,null,null,null,null,null,null,null,null,null,null,null,null,null,null,null,null,null,null,null,null,null,null,null,null,null,null,null,null,null,null,null,null,null,null,null,null,null,null,null,null,null,null,null,"※お客さま控にコピーします"]
[]
[]
[]
[]
[]
[]
[]
[]
[]
[]
[]
[]
[]
[]
["幹線線種・太さ※",null,null,null,null,null,null,null,null,null,null,null,null,null,null,null,null,null,null,null,null,"mm2"]
[]
["幹線ブレーカ容量※",null,null,null,null,null,null,null,null,null,null,null,null,null,null,null,null,null,null,null,null,null,null,"A"]
[]
["分岐回路数※",null,null,null,null,null,null,null,null,null,null,null,null,null,null,null,null,null,null,null,null,null,null,null,null,null,"※は必要入力箇所",null,null,null,null,null,null,null,null,null,null,null,null,null,null,{"$f":"単線結線図!AE13","v":""}]
[]
[]
["注文者",null,null,null,null,null,null,null,"住所：",null,null,{"$f":"IF(S35<>\"\",S35,\"\")","v":""},null,null,null,null,null,null,null,null,null,null,null,null,null,null,null,null,null,null,null,null,"社名：",null,null,{"$f":"IF(S37<>\"\",S37,\"\")","v":""}]
[null,null,null,null,null,null,null,null,null,null,null,null,null,null,null,null,null,null,null,null,null,null,null,null,null,null,null,null,null,null,null,null,"(氏名)"]
["施工年月日",null,null,null,null,null,null,null,null,null,null,null,null,null,null,"年",null,null,null,null,"月",null,null,null,null,"日",null,"自主検査結果",null,null,null,null,null,null,null,null,null,null,null,null,null,null,null,null,null,null,null,null,null,null,"✓"]
[]
["主任電気工事士",null,null,null,null,null,null,null,{"$f":"\"第 \"&S13&\" 種電気工事士\"","v":"第  種電気工事士"},null,null,null,null,null,null,{"$f":"IF(T15<>\"\",T15,\"\")","v":""},null,null,null,null,null,null,null,null,null,null,null,"分電盤より電源側の設備施設状況"]
[null,null,null,null,null,null,null,null,{"$f":"AC13 & \"第\" & AI13 & \"号\"","v":"北海道第号"}]
["施工責任者",null,null,null,null,null,null,null,{"$f":"\"第 \"&S17&\" 種電気工事士\"","v":"第  種電気工事士"},null,null,null,null,null,null,{"$f":"IF(T19<>\"\",T19,\"\")","v":""},null,null,null,null,null,null,null,null,null,null,null,"分電盤（ブレーカーの選定など）"]
[null,null,null,null,null,null,null,null,{"$f":"IF(AI17=\"\",AC17 & \"第　　　号\",AC17 & \"第\" & AI17 & \"号\")","v":"北海道第　　　号"}]
["作業者",null,null,null,null,null,null,null,{"$f":"\"第 \"&S21&\" 種電気工事士\"","v":"第  種電気工事士"},null,null,null,null,null,null,{"$f":"IF(T23<>\"\",T23,\"\")","v":""},null,null,null,null,null,null,null,null,null,null,null,"開閉器端子の増し締め"]
[null,null,null,null,null,null,null,null,{"$f":"IF(AI21=\"\",AC21 & \"第　　　号\",AC21 & \"第\" & AI21 & \"号\")","v":"北海道第　　　号"}]
[null,null,null,null,null,null,null,null,{"$f":"\"第 \"&S25&\" 種電気工事士\"","v":"第  種電気工事士"},null,null,null,null,null,null,{"$f":"IF(T27<>\"\",T27,\"\")","v":""},null,null,null,null,null,null,null,null,null,null,null,"屋内部分の配線接続・保護など"]
[null,null,null,null,null,null,null,null,{"$f":"IF(AI25=\"\",AC25 & \"第　　　号\",AC25 & \"第\" & AI25 & \"号\")","v":"北海道第　　　号"}]
["しゅん工調査使用欄(電力記載欄)",null,null,null,null,null,null,null,null,null,null,null,null,null,null,null,null,"一般以外の場合○印\n（特定・受託）",null,null,null,null,null,null,null,null,null,"配線器具、材料選定、機器の施設状況"]
[]
["調査日付印",null,null,null,null,null,null,"調査結果",null,"適合\n\n不適合",null,null,null,"絶縁\n抵抗値",null,null,null,"MΩ\nmA",null,null,null,null,null,null,null,null,null,"接地工事状況"]
[]
[null,null,null,null,null,null,null,null,null,null,null,null,null,"接地\n抵抗値",null,null,null,"D種",null,null,null,null,null,null,null,"Ω",null,"絶縁\n抵抗値",null,null,null,null,null,null,null,null,null,null,"MΩ",null,"接地\n抵抗値",null,null,null,"D種",null,null,null,null,null,null,"Ω"]
[null,null,null,null,null,null,null,null,null,null,null,null,null,null,null,null,null,"その他\n(　　種)",null,null,null,null,null,null,null,null,null,null,null,null,null,null,null,null,null,null,null,null,null,null,null,null,null,null,"その他\n(　　種)"]
[]
[]
["位　置　図"]
[]
[null,null,null,null,null,null,null,null,null,null,null,null,null,null,null,null,null,null,null,null,null,null,null,null,null,null,null,null,null,null,null,null,null,null,null,null,null,null,null,null,null,null,null,null,null,null,null,null,null,null,null,null,null,null,null,null,null,"↓「位置図」編集↓"]
[]
[]
[]
[]
[]
[]
[]
[]
[]
[]
[]
[]
[]
[null,null,null,null,null,null,null,null,null,null,null,null,null,null,null,null,{"$f":"IF(AQ47=\"○\",\"（別紙参照）\",\"\")","v":""}]
[]
[]
[]
[]
[]
[]
[]
[]
[]
[]
[]
[]
[]
[]
[]
[]
[]
[]
[]
[]
[]
[]
["平　面　図"]
[]
[null,null,null,null,null,null,null,null,null,null,null,null,null,null,null,null,null,null,null,null,null,null,null,null,null,null,null,null,null,null,null,null,null,null,null,null,null,null,null,null,null,null,null,null,null,null,null,null,null,null,null,null,null,null,null,null,null,"↓「平面図」編集↓"]
[]
[]
[]
[]
[]
[null,null,null,null,null,null,null,null,null,null,null,null,null,null,null,null,null,null,null,null,null,null,null,null,null,null,null,null,null,null,null,null,null,null,null,null,null,null,null,null,null,null,null,null,null,null,null,null,null,null,null,null,null,null,null,null,null,null,null,"当社柱",null,null,null,null,null,null,"変圧器柱"]
[]
[]
[]
[]
[]
[null,null,null,null,null,null,null,null,null,null,null,null,null,null,null,null,{"$f":"IF(AQ49=\"○\",\"（別紙参照）\",\"\")","v":""}]
[null,null,null,null,null,null,null,null,null,null,null,null,null,null,null,null,null,null,null,null,null,null,null,null,null,null,null,null,null,null,null,null,null,null,null,null,null,null,null,null,null,null,null,null,null,null,null,null,null,null,null,null,null,null,null,null,null,null,null,"NTT柱",null,null,null,null,null,null,"先方柱"]
[]
[]
[]
[]
[]
[]
[null,null,null,null,null,null,null,null,null,null,null,null,null,null,null,null,null,null,null,null,null,null,null,null,null,null,null,null,null,null,null,null,null,null,null,null,null,null,null,null,null,null,null,null,null,null,null,null,null,null,null,null,null,null,null,null,null,null,null,"低圧線",null,null,null,null,null,null,"引込線",null,null,null,null,null,"メッセンジャー",null,null,null,null,null,null,"ﾃｷｽﾄﾎﾞｯｸｽ"]
[]
[]
[]
[]
[null,null,null,null,null,null,null,null,null,null,null,null,null,null,null,null,null,null,null,null,null,null,null,null,null,null,null,null,null,null,null,null,null,null,null,null,null,null,null,null,null,null,null,null,null,null,null,null,null,null,null,null,null,null,null,null,null,null,null,"家屋",null,null,null,null,null,null,"用地境界",null,null,null,null,null,"T字道路",null,null,null,null,null,null,"十字道路"]
[]
["引込受点高さ※",null,null,null,null,null,null,null,null,{"$f":"IF(S43<>\"\",S43,\"\")","v":""},null,null,null,null,null,null,null,"ｍ"]
[]
["道路横断※",null,null,null,null,null,null,null,null,{"$f":"IF(Z45=1,\"有\",IF(Z45=2,\"無\",\"\"))","v":""}]
[]
["最寄電柱からの距離※",null,null,null,null,null,null,null,null,{"$f":"IF(S47<>\"\",S47,\"\")","v":""},null,null,null,null,null,null,null,"ｍ"]
[null,null,null,null,null,null,null,null,null,null,null,null,null,null,null,null,null,null,null,null,null,null,null,null,null,null,null,null,null,null,null,null,null,null,null,null,null,null,null,null,null,null,null,null,null,null,null,null,null,null,null,null,null,null,null,null,null,null,null,"直線道路",null,null,null,null,null,"曲線道路"]
["計器工事要否※",null,null,null,null,null,null,null,null,{"$f":"IF(Z49=1,\"要\",IF(Z49=2,\"不要\",\"\"))","v":""}]
[]
["計器取付高さ※",null,null,null,null,null,null,null,null,{"$f":"IF(S51<>\"\",S51,\"\")","v":""},null,null,null,null,null,null,null,"ｍ"]
[null,null,null,null,null,null,null,null,null,null,null,null,null,null,null,null,null,null,null,null,null,null,null,null,null,null,null,null,null,null,null,null,null,null,"引込柱Ｎｏ．※",null,null,null,null,null,null,"画",null,"区",null,"図",null,"番",null,"の",null,"号"]
["電力計器ＢＯＸ※",null,null,null,null,null,null,null,null,{"$f":"IF(Z53=1,\"要\",IF(Z53=2,\"不要\",\"\"))","v":""},null,null,null,null,null,null,null,null,null,null,"※は必要入力箇所",null,null,null,null,null,null,null,null,null,null,null,null,null,null,null,null,null,null,null,null,{"$f":"IF(S55<>\"\",LEFT(S55,2),\"\")","v":""},null,{"$f":"IF(S55<>\"\",MID(S55,3,2),\"\")","v":""},null,{"$f":"IF(S55<>\"\",MID(S55,5,2),\"\")","v":""},null,{"$f":"IF(S55<>\"\",MID(S55,7,2),\"\")","v":""},null,{"$f":"IF(S55<>\"\",MID(S55,9,2),\"\")","v":""},null,{"$f":"IF(S55<>\"\",RIGHT(S55,2),\"\")","v":""}]

{"sheet":"改定履歴","index":2,"n_rows":9,"n_cols":3,"rows_kept":9,"cut":false,"hidden":false,"merged":[]}
["バージョン","更新日","更新内容"]
["1.0",null,"様式見直しに伴い新規制定"]
["1.1","2020-09-04","印刷表示の調整"]
[null,null,"集合住宅入力機能追加"]
["1.2","2021/5","集合住宅入力機能の修正"]
[null,null,"編集操作を緩和し書式設定可能とした"]
[null,null,"入力箇所・単線図の入力欄サイズ変更"]
[null,null,"引込設計書への情報連携機能追加"]
[null,null,"単線図エリアへの直接入力を可とした"]

{"sheet":"平面図","index":3,"n_rows":0,"n_cols":0,"rows_kept":0,"cut":false,"hidden":true,"merged":[]}

{"sheet":"引込線立面図","index":4,"n_rows":0,"n_cols":0,"rows_kept":0,"cut":false,"hidden":true,"merged":[]}

{"sheet":"単線結線図","index":5,"n_rows":30,"n_cols":75,"rows_kept":30,"cut":false,"hidden":true,"merged":[[23,27,23,29],[23,30,23,32],[24,30,24,32],[26,30,26,32],[21,34,21,36],[22,34,22,36],[23,34,23,36],[20,27,20,29],[20,30,20,32],[21,30,21,32],[21,27,21,29],[22,27,22,29],[22,30,22,32],[27,74,27,76],[25,74,25,76],[26,74,26,76],[23,74,23,76],[24,74,24,76],[21,74,21,76],[22,74,22,76],[19,74,19,76],[20,74,20,76],[17,74,17,76],[18,74,18,76],[15,74,15,76],[16,74,16,76],[27,71,27,73],[24,71,24,73],[25,65,25,67],[25,68,25,70],[25,71,25,73],[26,65,26,67],[26,68,26,70],[26,71,26,73],[21,71,21,73],[22,65,22,67],[22,68,22,70],[22,71,22,73],[23,65,23,67],[23,68,23,70],[23,71,23,73],[18,71,18,73],[19,65,19,67],[19,68,19,70],[19,71,19,73],[20,65,20,67],[20,68,20,70],[20,71,20,73],[15,71,15,73],[16,65,16,67],[16,68,16,70],[16,71,16,73],[17,65,17,67],[17,68,17,70],[17,71,17,73],[15,65,15,67],[15,68,15,70],[18,65,18,67],[18,68,18,70],[25,59,25,61],[26,59,26,61],[27,59,27,61],[21,62,21,64],[22,62,22,64],[23,62,23,64],[21,65,21,67],[21,68,21,70],[24,65,24,67],[24,68,24,70],[27,65,27,67],[27,68,27,70],[25,62,25,64],[26,62,26,64],[27,62,27,64],[20,62,20,64],[24,62,24,64],[15,62,15,64],[16,62,16,64],[17,62,17,64],[18,62,18,64],[19,62,19,64],[15,59,15,61],[16,59,16,61],[17,59,17,61],[18,59,18,61],[19,59,19,61],[20,59,20,61],[21,59,21,61],[22,59,22,61],[23,59,23,61],[24,59,24,61],[10,35,10,36],[10,37,10,38],[25,56,25,58],[26,56,26,58],[27,56,27,58],[20,56,20,58],[21,56,21,58],[22,56,22,58],[23,56,23,58],[24,56,24,58],[15,56,15,58],[16,56,16,58],[17,56,17,58],[18,56,18,58],[19,56,19,58],[20,34,20,36],[23,38,23,40],[23,43,23,45],[17,27,17,29],[18,27,18,29],[17,30,17,32],[18,30,18,32],[19,30,19,32],[19,27,19,29],[4,27,4,29],[3,27,3,29],[2,27,2,29],[2,30,2,32],[3,30,3,32],[4,30,4,32],[12,30,12,38],[12,27,12,29],[5,30,5,32],[5,27,5,29],[9,37,9,38],[9,35,9,36],[6,27,6,29],[6,30,6,32],[9,33,10,33],[7,35,7,38],[8,35,8,36],[8,37,8,38]]}
[]
[null,null,null,null,null,null,null,null,null,null,null,null,null,null,null,null,null,null,null,null,null,null,null,null,null,null,null,"事前送電判定計算"]
[null,null,null,null,null,null,null,null,null,null,null,null,null,null,null,null,null,null,null,null,null,null,null,null,null,null,null,"契約容量",null,null,{"$f":"IF(電力控!AU53=\"A\",電力控!AQ53*0.1,IF(ISERR(FIND(\"k\",電力控!AU53)),電力控!AQ53*0.001,VALUE(電力控!AQ53)))","v":0},null,null,"※kW換算"]
[null,null,null,null,null,null,null,null,null,null,null,null,null,null,null,null,null,null,null,null,null,null,null,null,null,null,null,"容量判定",null,null,{"$f":"IF(AE3>6,\"NG\",\"OK\")","v":"OK"},null,null,"※6kW以下ならOK"]
[null,null,null,null,null,null,null,null,null,null,null,null,null,null,null,null,null,null,null,null,null,null,null,null,null,null,null,"契約判定",null,null,{"$f":"IF(電力控!Z51=1,\"OK\",\"STAY\")","v":"STAY"},null,null,"※定額はOK、その他は上長"]
[null,null,null,null,null,null,null,null,null,null,null,null,null,null,null,null,null,null,null,null,null,null,null,null,null,null,null,"データ判定",null,null,{"$f":"IF((電力控!S51=\"\")<>(電力控!Z51=\"\"),IF(OR(電力控!AQ53=\"\",電力控!AU53=\"\"),\"NG\",\"OK\"),\"NG\")","v":"NG"},null,null,"※入力に過不足がある場合"]
[null,null,null,null,null,null,null,null,null,null,null,null,null,null,null,null,null,null,null,null,null,null,null,null,null,null,null,"総合判定",null,null,{"$f":"IF(AE6=\"NG\",\"DATA\",IF(AE4=\"NG\",\"NG\",IF(AE5=\"OK\",\"OK\",\"BOSS\")))","v":"DATA"},null,null,"※下表による"]
[null,null,null,null,null,null,null,null,null,null,null,null,null,null,null,null,null,null,null,null,null,null,null,null,null,null,null,null,null,null,null,null,null,null,null,"契約"]
[null,null,null,null,null,null,null,null,null,null,null,null,null,null,null,null,null,null,null,null,null,null,null,null,null,null,null,null,null,null,null,null,null,null,null,"OK",null,"STAY",null,null,null,null,"DATA",null,"","（データ不足、非表示）"]
[null,null,null,null,null,null,null,null,null,null,null,null,null,null,null,null,null,null,null,null,null,null,null,null,null,null,null,null,null,null,null,null,null,"容量","NG","NG",null,"NG",null,null,null,null,"OK",null,"事前送電可能"]
[null,null,null,null,null,null,null,null,null,null,null,null,null,null,null,null,null,null,null,null,null,null,null,null,null,null,null,null,null,null,null,null,null,null,"OK","OK",null,"BOSS",null,null,null,null,"NG",null,"事前送電禁止"]
[null,null,null,null,null,null,null,null,null,null,null,null,null,null,null,null,null,null,null,null,null,null,null,null,null,null,null,null,null,null,null,null,null,null,null,null,null,null,null,null,null,null,"BOSS",null,"事前送電は上長判断"]
[null,null,null,null,null,null,null,null,null,null,null,null,null,null,null,null,null,null,null,null,null,null,null,null,null,null,null,"表示",null,null,{"$f":"INDEX(AS9:AS12,MATCH(AE7,AQ9:AQ12,0))","v":""}]
[]
[null,null,null,null,null,null,null,null,null,null,null,null,null,null,null,null,null,null,null,null,null,null,null,null,null,null,null,null,null,null,null,null,null,null,null,null,null,null,null,null,null,null,null,null,null,null,null,null,null,null,null,null,null,null,null,null,"電線許容電流[A]"]
[null,null,null,null,null,null,null,null,null,null,null,null,null,null,null,null,null,null,null,null,null,null,null,null,null,null,null,null,null,null,null,null,null,null,null,null,null,null,null,null,null,null,null,null,null,null,null,null,null,null,null,null,null,null,null,null,null,null,null,"CV2C",null,null,"CV3C",null,null,"CVD",null,null,"CVT",null,null,"VV2C",null,null,"VV3C"]
[null,null,null,null,null,null,null,null,null,null,null,null,null,null,null,null,null,null,null,null,null,null,null,null,null,null,null,"幹線保護協調判定",null,null,null,null,null,null,null,null,null,null,null,null,null,null,null,null,null,null,null,null,null,null,null,null,null,null,null,null,3.5,null,null,39,null,null,33,null,null,null,null,null,null,null,null,25,null,null,21]
[null,null,null,null,null,null,null,null,null,null,null,null,null,null,null,null,null,null,null,null,null,null,null,null,null,null,null,"幹線種類",null,null,{"$f":"電力控!I113","v":0},null,null,null,null,null,null,null,null,null,null,null,null,null,null,null,null,null,null,null,null,null,null,null,null,null,5.5,null,null,52,null,null,44,null,null,null,null,null,null,null,null,33,null,null,28]
[null,null,null,null,null,null,null,null,null,null,null,null,null,null,null,null,null,null,null,null,null,null,null,null,null,null,null,"太さ",null,null,{"$f":"電力控!O113","v":0},null,null,null,null,null,null,null,null,null,null,null,null,null,null,null,null,null,null,null,null,null,null,null,null,null,8,null,null,65,null,null,54,null,null,66,null,null,62,null,null,42,null,null,36]
[null,null,null,null,null,null,null,null,null,null,null,null,null,null,null,null,null,null,null,null,null,null,null,null,null,null,null,"ブレーカ",null,null,{"$f":"電力控!I115","v":0},null,null,null,null,null,null,null,null,null,null,null,null,null,null,null,null,null,null,null,null,null,null,null,null,null,14,null,null,91,null,null,76,null,null,91,null,null,86,null,null,59,null,null,50]
[null,null,null,null,null,null,null,null,null,null,null,null,null,null,null,null,null,null,null,null,null,null,null,null,null,null,null,"許容電流",null,null,{"$f":"INDEX(BH17:BY28,MATCH(AE19,BE17:BE28,0),MATCH(AE18,BH16:BY16,0))","v":{"$error":"#N/A"}},null,null,null,"判定",null,null,null,null,null,null,null,null,null,null,null,null,null,null,null,null,null,null,null,null,null,22,null,null,120,null,null,100,null,null,120,null,null,110,null,null,78,null,null,66]
[null,null,null,null,null,null,null,null,null,null,null,null,null,null,null,null,null,null,null,null,null,null,null,null,null,null,null,"単二",null,null,{"$f":"AE21","v":{"$error":"#N/A"}},null,null,null,{"$f":"IF(AE22>=AE$20,\"OK\",\"NG\")","v":{"$error":"#N/A"}},null,null,null,null,null,null,null,null,null,null,null,null,null,null,null,null,null,null,null,null,null,38,null,null,170,null,null,140,null,null,165,null,null,155,null,null,110,null,null,93]
[null,null,null,null,null,null,null,null,null,null,null,null,null,null,null,null,null,null,null,null,null,null,null,null,null,null,null,"単三",null,null,{"$f":"OFFSET(BG16,MATCH(AE19,BE17:BE28,0),MATCH(AE18,BH16:BY16,0)-3)","v":{"$error":"#N/A"}},null,null,null,{"$f":"IF(AE23>=AE$20,\"OK\",\"NG\")","v":{"$error":"#N/A"}},null,null,null,"モーター定格電流の範囲",null,null,null,null,null,null,null,null,null,null,null,null,null,null,null,null,null,60,null,null,225,null,null,190,null,null,225,null,null,210,null,null,145,null,null,120]
[null,null,null,null,null,null,null,null,null,null,null,null,null,null,null,null,null,null,null,null,null,null,null,null,null,null,null,"三相",null,null,{"$f":"AE21","v":{"$error":"#N/A"}},null,null,null,{"$f":"IF(AE24*2.5>=AE$20,\"OK\",\"NG\")","v":{"$error":"#N/A"}},null,null,null,{"$f":"AE20/3","v":0},null,null,"Aから",null,{"$f":"AE24/1.25","v":{"$error":"#N/A"}},null,null,"Aまで",null,null,null,null,null,null,null,null,null,100,null,null,310,null,null,260,null,null,310,null,null,290,null,null,200,null,null,165]
[null,null,null,null,null,null,null,null,null,null,null,null,null,null,null,null,null,null,null,null,null,null,null,null,null,null,null,null,null,null,null,null,null,null,null,null,null,null,"※電動機定格電流を50A未満とした",null,null,null,null,null,null,null,null,null,null,null,null,null,null,null,null,null,150,null,null,400,null,null,340,null,null,400,null,null,380,null,null,255,null,null,220]
[null,null,null,null,null,null,null,null,null,null,null,null,null,null,null,null,null,null,null,null,null,null,null,null,null,null,null,null,null,null,null,null,null,null,null,null,null,null,"※電動機以外の負荷はないものとした",null,null,null,null,null,null,null,null,null,null,null,null,null,null,null,null,null,200,null,null,485,null,null,410,null,null,490,null,null,465,null,null,310,null,null,260]
[null,null,null,null,null,null,null,null,null,null,null,null,null,null,null,null,null,null,null,null,null,null,null,null,null,null,null,null,null,null,null,null,null,null,null,null,null,null,null,null,null,null,null,null,null,null,null,null,null,null,null,null,null,null,null,null,250,null,null,560,null,null,470,null,null,565,null,null,535,null,null,355,null,null,300]
[null,null,null,null,null,null,null,null,null,null,null,null,null,null,null,null,null,null,null,null,null,null,null,null,null,null,null,null,null,null,null,null,null,null,null,null,null,null,null,null,null,null,null,null,null,null,null,null,null,null,null,null,null,null,null,null,325,null,null,660,null,null,555,null,null,670,null,null,635]
[null,null,null,null,null,null,null,null,null,null,null,null,null,null,null,null,null,null,null,null,null,null,null,null,null,null,null,null,null,null,null,null,null,null,null,null,null,null,null,null,null,null,null,null,null,null,null,null,null,null,null,null,null,null,null,null,"※日立電線Web公表値による（気中暗渠敷設、基底温度40℃、導体最高許容温度　CV-90℃/VV-60℃）"]
[null,null,null,null,null,null,null,null,null,null,null,null,null,null,null,null,null,null,null,null,null,null,null,null,null,null,null,null,null,null,null,null,null,null,null,null,null,null,null,null,null,null,null,null,null,null,null,null,null,null,null,null,null,null,null,null,"※緑数字はフジクラダイヤ電線Web公表値"]